[Event "Live Chess"]
[Site "Chess.com"]
[Date "2023.05.21"]
[Round "-"]
[White "Larchikov"]
[Black "Delacorta"]
[Result "1-0"]
[WhiteElo "1976"]
[BlackElo "1439"]
[TimeControl "300"]
[EndTime "1:24:21 PDT"]
[Termination "Larchikov won by resignation"]

1. d4 {[%clk 0:04:58.1]} 1... e6 {[%clk 0:04:57.2]} 2. Nf3 {[%clk 0:04:58]} 2...
f5 {[%clk 0:04:56.4]} 3. c4 {[%clk 0:04:55.9]} 3... Nf6 {[%clk 0:04:55.8]} 4.
Nc3 {[%clk 0:04:55.5]} 4... c6 {[%clk 0:04:55.2]} 5. Bg5 {[%clk 0:04:53.2]} 5...
Be7 {[%clk 0:04:52.5]} 6. Bxf6 {[%clk 0:04:51.4]} 6... Bxf6 {[%clk 0:04:51.4]}
7. e3 {[%clk 0:04:51.3]} 7... O-O {[%clk 0:04:45.3]} 8. Bd3 {[%clk 0:04:50.5]}
8... d5 {[%clk 0:04:41.1]} 9. O-O {[%clk 0:04:49.7]} 9... Bd7 {[%clk 0:04:32]}
10. b4 {[%clk 0:04:46.6]} 10... Be8 {[%clk 0:04:29.4]} 11. Rb1 {[%clk
0:04:40.7]} 11... Bh5 {[%clk 0:04:27.5]} 12. b5 {[%clk 0:04:31.4]} 12... Qa5
{[%clk 0:04:03.5]} 13. Rb3 {[%clk 0:04:21.8]} 13... Nd7 {[%clk 0:03:34.9]} 14.
cxd5 {[%clk 0:04:15]} 14... exd5 {[%clk 0:03:26.4]} 15. Bxf5 {[%clk 0:04:08.8]}
15... Nb6 {[%clk 0:03:05]} 16. Bd3 {[%clk 0:03:47]} 16... Nc4 {[%clk 0:02:50.2]}
17. Qe2 {[%clk 0:03:40.7]} 17... Bxf3 {[%clk 0:02:42.1]} 18. gxf3 {[%clk
0:03:32]} 18... Qc7 {[%clk 0:02:18.7]} 19. Bxc4 {[%clk 0:03:27.7]} 19... dxc4
{[%clk 0:02:15.8]} 20. Qxc4+ {[%clk 0:03:27.6]} 20... Kh8 {[%clk 0:02:15.2]} 21.
Ne4 {[%clk 0:03:24.8]} 21... Qd6 {[%clk 0:01:57.6]} 1-0

[Event "Live Chess"]
[Site "Chess.com"]
[Date "2023.05.21"]
[Round "-"]
[White "Denz14"]
[Black "domrobson"]
[Result "0-1"]
[WhiteElo "1030"]
[BlackElo "1754"]
[TimeControl "300"]
[EndTime "1:24:33 PDT"]
[Termination "domrobson won by resignation"]

1. e4 {[%clk 0:04:55.5]} 1... e5 {[%clk 0:04:59.3]} 2. Nf3 {[%clk 0:04:50.5]}
2... Nc6 {[%clk 0:04:58.4]} 3. Bc4 {[%clk 0:04:48.4]} 3... Nf6 {[%clk
0:04:57.3]} 4. O-O {[%clk 0:04:45.1]} 4... Bc5 {[%clk 0:04:54.8]} 5. d3 {[%clk
0:04:41.3]} 5... a6 {[%clk 0:04:53.2]} 6. a3 {[%clk 0:04:38.9]} 6... Ba7 {[%clk
0:04:52]} 7. Ba2 {[%clk 0:04:35.2]} 7... d6 {[%clk 0:04:50.8]} 8. Bg5 {[%clk
0:04:28.7]} 8... h6 {[%clk 0:04:49.3]} 9. Bh4 {[%clk 0:04:26.9]} 9... g5 {[%clk
0:04:48.5]} 10. Bg3 {[%clk 0:04:25.7]} 10... h5 {[%clk 0:04:47.6]} 11. h3 {[%clk
0:04:24.2]} 11... h4 {[%clk 0:04:41.5]} 12. Bh2 {[%clk 0:04:21.3]} 12... g4
{[%clk 0:04:40.6]} 13. hxg4 {[%clk 0:04:20]} 13... Bxg4 {[%clk 0:04:39]} 14.
Nbd2 {[%clk 0:04:15.1]} 14... Nd4 {[%clk 0:04:32.1]} 15. Qc1 {[%clk 0:04:10.5]}
15... Ne2+ {[%clk 0:04:29.8]} 0-1

[Event "Live Chess"]
[Site "Chess.com"]
[Date "2023.05.21"]
[Round "-"]
[White "RichardABates"]
[Black "ms_lilley"]
[Result "1-0"]
[WhiteElo "2130"]
[BlackElo "587"]
[TimeControl "300"]
[EndTime "1:24:51 PDT"]
[Termination "RichardABates won by checkmate"]

1. d4 {[%clk 0:04:58.5]} 1... d6 {[%clk 0:04:56.8]} 2. e4 {[%clk 0:04:56.7]}
2... c5 {[%clk 0:04:52.9]} 3. dxc5 {[%clk 0:04:50.9]} 3... dxc5 {[%clk
0:04:50.1]} 4. Qxd8+ {[%clk 0:04:49.3]} 4... Kxd8 {[%clk 0:04:47.3]} 5. Bc4
{[%clk 0:04:47.8]} 5... e6 {[%clk 0:04:45.2]} 6. Nf3 {[%clk 0:04:46.5]} 6... h6
{[%clk 0:04:43.4]} 7. Ne5 {[%clk 0:04:44.2]} 7... Ne7 {[%clk 0:04:41.6]} 8.
Nxf7+ {[%clk 0:04:42.7]} 8... Kc7 {[%clk 0:04:35.6]} 9. Bf4+ {[%clk 0:04:40.1]}
9... Kc6 {[%clk 0:04:29.7]} 10. Nc3 {[%clk 0:04:37.1]} 10... Nd7 {[%clk
0:04:24.6]} 11. Nd8+ {[%clk 0:04:35]} 11... Kb6 {[%clk 0:04:20.2]} 12. Na4+
{[%clk 0:04:33.3]} 12... Ka5 {[%clk 0:04:18.3]} 13. Bd2+ {[%clk 0:04:27.5]}
13... Kxa4 {[%clk 0:04:15.4]} 14. a3 {[%clk 0:04:26]} 14... Nb6 {[%clk
0:04:11.2]} 15. b3# {[%clk 0:04:24.7]} 1-0

[Event "Live Chess"]
[Site "Chess.com"]
[Date "2023.05.21"]
[Round "-"]
[White "Redwinelover"]
[Black "ProfPoisson"]
[Result "0-1"]
[WhiteElo "1126"]
[BlackElo "1194"]
[TimeControl "300"]
[EndTime "1:24:55 PDT"]
[Termination "ProfPoisson won by resignation"]

1. e4 {[%clk 0:04:54.3]} 1... e5 {[%clk 0:04:57.9]} 2. Bc4 {[%clk 0:04:52]} 2...
Nf6 {[%clk 0:04:56]} 3. d4 {[%clk 0:04:49.3]} 3... Nxe4 {[%clk 0:04:52.6]} 4.
dxe5 {[%clk 0:04:45.3]} 4... Bc5 {[%clk 0:04:48.3]} 5. Qd5 {[%clk 0:04:40.7]}
5... Bxf2+ {[%clk 0:04:28.6]} 6. Ke2 {[%clk 0:04:38.7]} 6... O-O {[%clk
0:03:40]} 7. Qxe4 {[%clk 0:04:31.7]} 7... d5 {[%clk 0:03:31.1]} 8. Bxd5 {[%clk
0:04:24.3]} 8... Bb6 {[%clk 0:03:18.1]} 9. Nf3 {[%clk 0:04:21.8]} 9... Nc6
{[%clk 0:03:07.5]} 10. Bxc6 {[%clk 0:04:17.6]} 10... bxc6 {[%clk 0:03:01.6]} 11.
Be3 {[%clk 0:04:15.8]} 11... f5 {[%clk 0:02:47.8]} 12. exf6 {[%clk 0:04:12.9]}
12... Qxf6 {[%clk 0:02:41.9]} 13. Nc3 {[%clk 0:04:02.9]} 13... Bf5 {[%clk
0:02:39.5]} 14. Qxc6 {[%clk 0:03:59]} 14... Qxc6 {[%clk 0:02:35.9]} 15. Rad1
{[%clk 0:03:37.2]} 15... Bxe3 {[%clk 0:02:33.3]} 16. Kxe3 {[%clk 0:03:34.7]}
16... Rfe8+ {[%clk 0:02:28.8]} 17. Kf2 {[%clk 0:03:31.2]} 17... Rad8 {[%clk
0:02:11.2]} 18. Rxd8 {[%clk 0:03:26]} 18... Rxd8 {[%clk 0:02:09]} 19. Ne2 {[%clk
0:03:21.8]} 19... Qxc2 {[%clk 0:02:05.3]} 20. Nd4 {[%clk 0:03:18.8]} 20... Rxd4
{[%clk 0:01:53.4]} 21. Rc1 {[%clk 0:03:17]} 21... Qxc1 {[%clk 0:01:44]} 22. Nxc1
{[%clk 0:03:13.4]} 22... Rd2+ {[%clk 0:01:43.5]} 23. Ke3 {[%clk 0:03:10.6]}
23... Rxb2 {[%clk 0:01:41.7]} 24. Nb3 {[%clk 0:03:06.7]} 24... Rxa2 {[%clk
0:01:36.1]} 25. Nd4 {[%clk 0:03:04.7]} 25... Bg6 {[%clk 0:01:32]} 26. Nb5 {[%clk
0:03:01.9]} 26... Rxg2 {[%clk 0:01:29.7]} 27. Nxa7 {[%clk 0:02:57.6]} 27... Rxh2
{[%clk 0:01:28.2]} 28. Nb5 {[%clk 0:02:56]} 28... c5 {[%clk 0:01:24.7]} 29. Nc3
{[%clk 0:02:51.8]} 29... c4 {[%clk 0:01:22.8]} 30. Kd4 {[%clk 0:02:49.8]} 30...
Bd3 {[%clk 0:01:19.7]} 31. Nd5 {[%clk 0:02:45.4]} 31... Rh4+ {[%clk 0:01:12.3]}
32. Kc3 {[%clk 0:02:42.2]} 32... g5 {[%clk 0:01:10.2]} 33. Ne3 {[%clk
0:02:39.8]} 33... g4 {[%clk 0:01:06.9]} 34. Nxg4 {[%clk 0:02:36.1]} 34... Rxg4
{[%clk 0:01:04.5]} 35. Kd2 {[%clk 0:02:34]} 35... h5 {[%clk 0:01:02]} 0-1

[Event "Live Chess"]
[Site "Chess.com"]
[Date "2023.05.21"]
[Round "-"]
[White "raimundklein"]
[Black "horsechessnut"]
[Result "1-0"]
[WhiteElo "1753"]
[BlackElo "1442"]
[TimeControl "300"]
[EndTime "1:25:00 PDT"]
[Termination "raimundklein won on time"]

1. e4 {[%clk 0:04:59.4]} 1... e5 {[%clk 0:04:56.9]} 2. Nf3 {[%clk 0:04:58.1]}
2... Nc6 {[%clk 0:04:55.3]} 3. Bb5 {[%clk 0:04:54.1]} 3... Nge7 {[%clk
0:04:51.6]} 4. O-O {[%clk 0:04:50.1]} 4... d6 {[%clk 0:04:49.1]} 5. h3 {[%clk
0:04:48]} 5... Bd7 {[%clk 0:04:48.2]} 6. c3 {[%clk 0:04:43.9]} 6... a6 {[%clk
0:04:47.3]} 7. Ba4 {[%clk 0:04:42.5]} 7... b5 {[%clk 0:04:45.8]} 8. Bc2 {[%clk
0:04:41.3]} 8... Ng6 {[%clk 0:04:38.3]} 9. d4 {[%clk 0:04:39.1]} 9... Be7 {[%clk
0:04:34]} 10. Be3 {[%clk 0:04:32.2]} 10... h6 {[%clk 0:04:18.9]} 11. Re1 {[%clk
0:04:21.1]} 11... Na5 {[%clk 0:04:17.5]} 12. Nbd2 {[%clk 0:04:14.7]} 12... Nb7
{[%clk 0:04:13.8]} 13. Nf1 {[%clk 0:04:09]} 13... Bc8 {[%clk 0:04:11.7]} 14. Ng3
{[%clk 0:04:07.3]} 14... Na5 {[%clk 0:03:49.5]} 15. b3 {[%clk 0:04:01.5]} 15...
Nc6 {[%clk 0:03:41.1]} 16. Nf5 {[%clk 0:03:49.1]} 16... Bf6 {[%clk 0:03:39.5]}
17. Qe2 {[%clk 0:03:38.4]} 17... Nce7 {[%clk 0:03:38.3]} 18. Nxe7 {[%clk
0:03:30.8]} 18... Qxe7 {[%clk 0:03:36.5]} 19. dxe5 {[%clk 0:03:22.7]} 19... dxe5
{[%clk 0:03:34.4]} 20. Rad1 {[%clk 0:03:20.2]} 20... Bb7 {[%clk 0:03:29.3]} 21.
Rd2 {[%clk 0:03:17.8]} 21... O-O {[%clk 0:03:27.8]} 22. Red1 {[%clk 0:03:16.5]}
22... Rfd8 {[%clk 0:03:22.8]} 23. Nh2 {[%clk 0:03:02.9]} 23... Rxd2 {[%clk
0:03:19.7]} 24. Rxd2 {[%clk 0:03:01.6]} 24... Rd8 {[%clk 0:03:18.7]} 25. Qd1
{[%clk 0:03:00.7]} 25... Rxd2 {[%clk 0:03:17.1]} 26. Qxd2 {[%clk 0:03:00.6]}
26... Qd6 {[%clk 0:03:07.3]} 27. Ng4 {[%clk 0:02:54.5]} 27... Qxd2 {[%clk
0:03:05]} 28. Bxd2 {[%clk 0:02:53.4]} 28... Be7 {[%clk 0:03:04.2]} 29. f3 {[%clk
0:02:51.4]} 29... Bd6 {[%clk 0:03:03.3]} 30. Be3 {[%clk 0:02:49.8]} 30... Bc8
{[%clk 0:02:58.5]} 31. Kf2 {[%clk 0:02:46.8]} 31... Nf4 {[%clk 0:02:53.1]} 32.
Nh2 {[%clk 0:02:34.8]} 32... Ne6 {[%clk 0:02:44.4]} 33. Nf1 {[%clk 0:02:33.3]}
33... Nc5 {[%clk 0:02:40.7]} 34. Bd2 {[%clk 0:02:30.6]} 34... Nd7 {[%clk
0:02:37.2]} 35. Ne3 {[%clk 0:02:29.5]} 35... Bc5 {[%clk 0:02:35.3]} 36. Ke2
{[%clk 0:02:26.7]} 36... Nf8 {[%clk 0:02:23.8]} 37. Nd5 {[%clk 0:02:25.1]} 37...
Ne6 {[%clk 0:02:21.4]} 38. b4 {[%clk 0:02:22.7]} 38... Bd6 {[%clk 0:02:19.7]}
39. a4 {[%clk 0:02:19.4]} 39... Nf4+ {[%clk 0:02:15.7]} 40. Kf2 {[%clk 0:02:16]}
40... Nxd5 {[%clk 0:02:12.2]} 41. axb5 {[%clk 0:02:13.8]} 41... Nf4 {[%clk
0:01:57.4]} 42. Bxf4 {[%clk 0:02:05.9]} 42... exf4 {[%clk 0:01:55.5]} 43. Bd3
{[%clk 0:02:03.1]} 43... Be5 {[%clk 0:01:53.6]} 44. bxa6 {[%clk 0:02:00.2]}
44... Bxc3 {[%clk 0:01:50.5]} 45. b5 {[%clk 0:01:58.1]} 45... Bd4+ {[%clk
0:01:48.4]} 46. Ke2 {[%clk 0:01:57]} 46... Bb6 {[%clk 0:01:43.6]} 47. Bc4 {[%clk
0:01:55.6]} 47... Kf8 {[%clk 0:01:40.6]} 48. Kd3 {[%clk 0:01:54.2]} 48... Bd7
{[%clk 0:01:38.2]} 49. e5 {[%clk 0:01:52.6]} 49... Ke7 {[%clk 0:01:36.7]} 50.
Ke4 {[%clk 0:01:51.8]} 50... g5 {[%clk 0:01:33.7]} 51. Kd5 {[%clk 0:01:49.8]}
51... Kd8 {[%clk 0:01:21.8]} 52. Bd3 {[%clk 0:01:47.5]} 52... Ke7 {[%clk
0:01:12.8]} 53. Bh7 {[%clk 0:01:45.4]} 53... Kd8 {[%clk 0:01:11.2]} 54. Ke4
{[%clk 0:01:41.1]} 54... Ke7 {[%clk 0:01:09.9]} 55. Kd5 {[%clk 0:01:40]} 55...
Kd8 {[%clk 0:01:08.6]} 56. Ke4 {[%clk 0:01:39.5]} 56... c6 {[%clk 0:01:07.3]}
57. bxc6 {[%clk 0:01:32.9]} 57... Bxc6+ {[%clk 0:01:05.8]} 58. Kf5 {[%clk
0:01:30.5]} 58... Ba4 {[%clk 0:01:00.9]} 59. Kf6 {[%clk 0:01:29]} 59... Bb3
{[%clk 0:00:57.6]} 60. Kg7 {[%clk 0:01:25.3]} 60... Bc5 {[%clk 0:00:51.3]} 61.
Kxh6 {[%clk 0:01:21.1]} 61... Bc4 {[%clk 0:00:41.1]} 62. Kxg5 {[%clk 0:01:18.7]}
62... Bxa6 {[%clk 0:00:40.2]} 63. Bg8 {[%clk 0:01:16.3]} 63... Bf1 {[%clk
0:00:38.6]} 64. Bxf7 {[%clk 0:01:13.2]} 64... Bxg2 {[%clk 0:00:37.2]} 65. Kxf4
{[%clk 0:01:12.1]} 65... Bxh3 {[%clk 0:00:35.5]} 66. Ke4 {[%clk 0:01:11.1]}
66... Bd7 {[%clk 0:00:32.6]} 67. f4 {[%clk 0:01:09.1]} 67... Bf8 {[%clk
0:00:30.5]} 68. f5 {[%clk 0:01:06.5]} 68... Ke7 {[%clk 0:00:29.6]} 69. Bg6
{[%clk 0:01:04.8]} 69... Be8 {[%clk 0:00:23.3]} 70. f6+ {[%clk 0:01:01.6]} 70...
Ke6 {[%clk 0:00:20.2]} 71. Bf5+ {[%clk 0:01:01]} 71... Kf7 {[%clk 0:00:15.8]}
72. Kd5 {[%clk 0:00:58]} 72... Kg8 {[%clk 0:00:11.7]} 73. e6 {[%clk 0:00:54.9]}
73... Ba3 {[%clk 0:00:09.3]} 74. Bd3 {[%clk 0:00:49.4]} 74... Ba4 {[%clk
0:00:06.1]} 75. Bg6 {[%clk 0:00:44.7]} 75... Bb3+ {[%clk 0:00:02.6]} 76. Ke5
{[%clk 0:00:42]} 76... Bb2+ {[%clk 0:00:00.8]} 77. Kf5 {[%clk 0:00:38]} 1-0

[Event "Live Chess"]
[Site "Chess.com"]
[Date "2023.05.21"]
[Round "-"]
[White "JanMur7"]
[Black "raminguy"]
[Result "1-0"]
[WhiteElo "1957"]
[BlackElo "1952"]
[TimeControl "300"]
[EndTime "1:25:02 PDT"]
[Termination "JanMur7 won by resignation"]

1. e4 {[%clk 0:04:58.3]} 1... e5 {[%clk 0:04:59]} 2. Nf3 {[%clk 0:04:57]} 2...
Nc6 {[%clk 0:04:58.3]} 3. Nc3 {[%clk 0:04:56.4]} 3... Nf6 {[%clk 0:04:57]} 4.
Nxe5 {[%clk 0:04:54.6]} 4... Nxe5 {[%clk 0:04:55.3]} 5. d4 {[%clk 0:04:53.4]}
5... Ng6 {[%clk 0:04:52.8]} 6. e5 {[%clk 0:04:52.4]} 6... Ng8 {[%clk 0:04:51.6]}
7. Bc4 {[%clk 0:04:51.6]} 7... Bb4 {[%clk 0:04:48]} 8. O-O {[%clk 0:04:47.8]}
8... Bxc3 {[%clk 0:04:46.5]} 9. bxc3 {[%clk 0:04:47.7]} 9... N8e7 {[%clk
0:04:44.7]} 10. f4 {[%clk 0:04:46.5]} 10... O-O {[%clk 0:04:36.5]} 11. f5 {[%clk
0:04:44.8]} 11... Nh8 {[%clk 0:04:34.9]} 12. f6 {[%clk 0:04:02.5]} 12... Neg6
{[%clk 0:04:13.4]} 13. fxg7 {[%clk 0:03:50.2]} 13... Kxg7 {[%clk 0:04:11.9]} 14.
Qh5 {[%clk 0:03:48.9]} 14... Kg8 {[%clk 0:04:03.8]} 15. Bg5 {[%clk 0:03:33.1]}
15... Qe8 {[%clk 0:03:54.8]} 16. Bf6 {[%clk 0:03:29.6]} 16... Qd8 {[%clk
0:03:13.8]} 17. Qh6 {[%clk 0:03:22.2]} 1-0

[Event "Live Chess"]
[Site "Chess.com"]
[Date "2023.05.21"]
[Round "-"]
[White "peter-785"]
[Black "chessfiction"]
[Result "0-1"]
[WhiteElo "1195"]
[BlackElo "2342"]
[TimeControl "300"]
[EndTime "1:25:03 PDT"]
[Termination "chessfiction won by resignation"]

1. e4 {[%clk 0:04:52]} 1... e5 {[%clk 0:04:59.9]} 2. Nf3 {[%clk 0:04:50.8]} 2...
d5 {[%clk 0:04:58.8]} 3. exd5 {[%clk 0:04:48.8]} 3... e4 {[%clk 0:04:58.7]} 4.
Nd4 {[%clk 0:04:44.6]} 4... Qxd5 {[%clk 0:04:56.8]} 5. c3 {[%clk 0:04:30.2]}
5... Bc5 {[%clk 0:04:54.7]} 6. Qb3 {[%clk 0:04:11.3]} 6... Qe5 {[%clk
0:04:50.3]} 7. Be2 {[%clk 0:03:52.1]} 7... Nf6 {[%clk 0:04:48.8]} 8. h3 {[%clk
0:03:44.4]} 8... O-O {[%clk 0:04:46.4]} 9. O-O {[%clk 0:03:24.6]} 9... Bd6
{[%clk 0:04:42.3]} 10. g3 {[%clk 0:03:12.9]} 10... Bxh3 {[%clk 0:04:41]} 11. Re1
{[%clk 0:03:09.9]} 11... h5 {[%clk 0:04:36.8]} 12. Bf3 {[%clk 0:03:02.8]} 12...
h4 {[%clk 0:04:32.3]} 13. Rxe4 {[%clk 0:02:02.8]} 13... Nxe4 {[%clk 0:04:28.7]}
14. Bxe4 {[%clk 0:01:56.2]} 14... Qxe4 {[%clk 0:04:16.6]} 0-1

[Event "Live Chess"]
[Site "Chess.com"]
[Date "2023.05.21"]
[Round "-"]
[White "RamsayFlayer"]
[Black "elephantgerrald"]
[Result "1-0"]
[WhiteElo "1972"]
[BlackElo "761"]
[TimeControl "300"]
[EndTime "1:25:18 PDT"]
[Termination "RamsayFlayer won by checkmate"]

1. e4 {[%clk 0:04:57]} 1... e6 {[%clk 0:04:57.7]} 2. d4 {[%clk 0:04:55.5]} 2...
d5 {[%clk 0:04:55.5]} 3. Nc3 {[%clk 0:04:54.6]} 3... dxe4 {[%clk 0:04:53.9]} 4.
Nxe4 {[%clk 0:04:54.5]} 4... e5 {[%clk 0:04:51.9]} 5. Nf3 {[%clk 0:04:48.4]}
5... exd4 {[%clk 0:04:50.5]} 6. Qxd4 {[%clk 0:04:46.8]} 6... Qxd4 {[%clk
0:04:49.1]} 7. Nxd4 {[%clk 0:04:46.7]} 7... Bf5 {[%clk 0:04:45.2]} 8. Bd3 {[%clk
0:04:39.6]} 8... Bxe4 {[%clk 0:04:36.8]} 9. Bxe4 {[%clk 0:04:38.3]} 9... Bc5
{[%clk 0:04:35.4]} 10. Bxb7 {[%clk 0:04:35.2]} 10... Bxd4 {[%clk 0:04:32.3]} 11.
Bxa8 {[%clk 0:04:34.2]} 11... c6 {[%clk 0:04:28.2]} 12. Bf4 {[%clk 0:04:29.9]}
12... Nd7 {[%clk 0:04:24.5]} 13. Bxc6 {[%clk 0:04:27.5]} 13... Bxb2 {[%clk
0:04:22.2]} 14. Rb1 {[%clk 0:04:26.3]} 14... Bc3+ {[%clk 0:04:18.4]} 15. Bd2
{[%clk 0:04:25]} 15... Bxd2+ {[%clk 0:04:17]} 16. Kxd2 {[%clk 0:04:24.9]} 16...
Nf6 {[%clk 0:04:15.6]} 17. Rb8+ {[%clk 0:04:19.3]} 17... Ke7 {[%clk 0:04:07.6]}
18. Rxh8 {[%clk 0:04:18.3]} 18... Ne4+ {[%clk 0:04:06.5]} 19. Bxe4 {[%clk
0:04:16.3]} 19... Ne5 {[%clk 0:04:03.7]} 20. Re1 {[%clk 0:04:11.6]} 20... Nc4+
{[%clk 0:04:01.6]} 21. Kc3 {[%clk 0:04:10.6]} 21... Ne5 {[%clk 0:03:58]} 22.
Bxh7 {[%clk 0:04:07.9]} 22... Kf6 {[%clk 0:03:55]} 23. f4 {[%clk 0:04:03.9]}
23... Ng4 {[%clk 0:03:52.3]} 24. h3 {[%clk 0:03:57.1]} 24... g6 {[%clk
0:03:49.8]} 25. hxg4 {[%clk 0:03:54.9]} 25... g5 {[%clk 0:03:46.9]} 26. g3
{[%clk 0:03:50.1]} 26... gxf4 {[%clk 0:03:45.7]} 27. gxf4 {[%clk 0:03:50]} 27...
a5 {[%clk 0:03:44.4]} 28. g5+ {[%clk 0:03:49.2]} 28... Kg7 {[%clk 0:03:42.5]}
29. Ree8 {[%clk 0:03:37.6]} 29... f5 {[%clk 0:03:39.7]} 30. g6 {[%clk
0:03:33.6]} 30... Kh6 {[%clk 0:03:34.8]} 31. Re7 {[%clk 0:03:29.5]} 31... a4
{[%clk 0:03:29.4]} 32. g7 {[%clk 0:03:28.6]} 32... a3 {[%clk 0:03:24.5]} 33.
g8=Q {[%clk 0:03:26.9]} 33... Kh5 {[%clk 0:03:22.2]} 34. Qg5# {[%clk 0:03:26.8]}
1-0

[Event "Live Chess"]
[Site "Chess.com"]
[Date "2023.05.21"]
[Round "-"]
[White "stevochess11"]
[Black "LiamClery2020"]
[Result "0-1"]
[WhiteElo "1780"]
[BlackElo "2022"]
[TimeControl "300"]
[EndTime "1:25:31 PDT"]
[Termination "LiamClery2020 won by resignation"]

1. d4 {[%clk 0:04:55.8]} 1... Nf6 {[%clk 0:04:59.9]} 2. Nf3 {[%clk 0:04:54.6]}
2... e6 {[%clk 0:04:58.1]} 3. e3 {[%clk 0:04:50.9]} 3... c5 {[%clk 0:04:57.4]}
4. Bd3 {[%clk 0:04:48.5]} 4... cxd4 {[%clk 0:04:55.9]} 5. exd4 {[%clk
0:04:38.1]} 5... Nc6 {[%clk 0:04:50.6]} 6. O-O {[%clk 0:04:36.7]} 6... d5 {[%clk
0:04:48.4]} 7. c3 {[%clk 0:04:31.3]} 7... Bd6 {[%clk 0:04:47.3]} 8. Bg5 {[%clk
0:04:29.2]} 8... O-O {[%clk 0:04:46.3]} 9. Qe2 {[%clk 0:04:27.6]} 9... h6 {[%clk
0:04:44.8]} 10. Bh4 {[%clk 0:04:25.3]} 10... Be7 {[%clk 0:04:43.5]} 11. Nbd2
{[%clk 0:04:23.6]} 11... Nd7 {[%clk 0:04:34.3]} 12. Bxe7 {[%clk 0:04:20.9]}
12... Qxe7 {[%clk 0:04:34.2]} 13. Ne5 {[%clk 0:04:19.6]} 13... Ndxe5 {[%clk
0:04:32.7]} 14. dxe5 {[%clk 0:04:19.5]} 14... b6 {[%clk 0:04:29.7]} 15. f4
{[%clk 0:04:17.8]} 15... d4 {[%clk 0:04:27.1]} 16. Qe4 {[%clk 0:04:15.8]} 16...
g6 {[%clk 0:04:21.5]} 17. cxd4 {[%clk 0:04:12.3]} 17... Bb7 {[%clk 0:04:20.1]}
18. d5 {[%clk 0:03:59.8]} 18... exd5 {[%clk 0:04:19]} 19. Qxd5 {[%clk
0:03:58.8]} 19... Rad8 {[%clk 0:04:18.3]} 20. Qb3 {[%clk 0:03:54.4]} 20... Na5
{[%clk 0:04:14]} 21. Qc2 {[%clk 0:03:49.2]} 21... Qd7 {[%clk 0:04:12.5]} 22.
Bxg6 {[%clk 0:03:41.7]} 22... Qxd2 {[%clk 0:04:08.1]} 23. Qxd2 {[%clk
0:03:35.9]} 23... Rxd2 {[%clk 0:04:06.7]} 24. Bxf7+ {[%clk 0:03:01.2]} 24...
Rxf7 {[%clk 0:04:04.8]} 25. Rf2 {[%clk 0:03:00.5]} 25... Rfd7 {[%clk 0:04:02.6]}
26. f5 {[%clk 0:02:54.7]} 26... Rxf2 {[%clk 0:04:01.2]} 27. Kxf2 {[%clk
0:02:53.5]} 27... Rd2+ {[%clk 0:04:00.7]} 0-1

[Event "Live Chess"]
[Site "Chess.com"]
[Date "2023.05.21"]
[Round "-"]
[White "CheckThis4"]
[Black "CroasArRheun"]
[Result "1-0"]
[WhiteElo "2494"]
[BlackElo "1806"]
[TimeControl "300"]
[EndTime "1:25:31 PDT"]
[Termination "CheckThis4 won by resignation"]

1. d4 {[%clk 0:04:57.3]} 1... d5 {[%clk 0:04:58.7]} 2. Nc3 {[%clk 0:04:54.5]}
2... Nf6 {[%clk 0:04:57.6]} 3. e4 {[%clk 0:04:54.4]} 3... e6 {[%clk 0:04:56.3]}
4. Bg5 {[%clk 0:04:50.3]} 4... Be7 {[%clk 0:04:52.4]} 5. e5 {[%clk 0:04:48.3]}
5... Nfd7 {[%clk 0:04:48.9]} 6. Bxe7 {[%clk 0:04:41.9]} 6... Qxe7 {[%clk
0:04:48.6]} 7. f4 {[%clk 0:04:41.5]} 7... O-O {[%clk 0:04:45.8]} 8. Nf3 {[%clk
0:04:40.4]} 8... c5 {[%clk 0:04:44.5]} 9. Bd3 {[%clk 0:04:36.7]} 9... Nc6 {[%clk
0:04:39.3]} 10. Bxh7+ {[%clk 0:04:26.1]} 10... Kxh7 {[%clk 0:04:33.9]} 11. Ng5+
{[%clk 0:04:25.2]} 11... Kg6 {[%clk 0:04:04.9]} 12. Qd3+ {[%clk 0:04:18.7]}
12... Kh5 {[%clk 0:03:46.3]} 13. Qh3+ {[%clk 0:04:08.9]} 1-0

[Event "Live Chess"]
[Site "Chess.com"]
[Date "2023.05.21"]
[Round "-"]
[White "JoeyCage"]
[Black "fretle"]
[Result "1-0"]
[WhiteElo "2306"]
[BlackElo "1811"]
[TimeControl "300"]
[EndTime "1:25:37 PDT"]
[Termination "JoeyCage won by checkmate"]

1. e4 {[%clk 0:04:54.2]} 1... e6 {[%clk 0:04:58.2]} 2. d4 {[%clk 0:04:53.1]}
2... b6 {[%clk 0:04:57.7]} 3. Nc3 {[%clk 0:04:51.4]} 3... Bb7 {[%clk 0:04:57.2]}
4. Nf3 {[%clk 0:04:50.2]} 4... Bb4 {[%clk 0:04:56.3]} 5. Bd3 {[%clk 0:04:48.7]}
5... d5 {[%clk 0:04:53.2]} 6. exd5 {[%clk 0:04:46.8]} 6... Bxd5 {[%clk
0:04:49.5]} 7. O-O {[%clk 0:04:44.8]} 7... Bxc3 {[%clk 0:04:48]} 8. bxc3 {[%clk
0:04:43.7]} 8... Nf6 {[%clk 0:04:47]} 9. Ba3 {[%clk 0:04:38.7]} 9... Nbd7 {[%clk
0:04:40]} 10. Qe2 {[%clk 0:04:33]} 10... c5 {[%clk 0:04:33.2]} 11. Rfd1 {[%clk
0:04:23.4]} 11... O-O {[%clk 0:04:23.9]} 12. Ne5 {[%clk 0:04:19.2]} 12... Qc7
{[%clk 0:04:14.5]} 13. Nxd7 {[%clk 0:04:10.7]} 13... Nxd7 {[%clk 0:04:08.4]} 14.
Qh5 {[%clk 0:04:04.3]} 14... Nf6 {[%clk 0:04:07.1]} 15. Qh4 {[%clk 0:03:59.8]}
15... Bb7 {[%clk 0:03:47.6]} 16. Bf1 {[%clk 0:03:51.5]} 16... Rfd8 {[%clk
0:03:45.9]} 17. dxc5 {[%clk 0:03:45.2]} 17... bxc5 {[%clk 0:03:44.4]} 18. Rd3
{[%clk 0:03:42.5]} 18... Rd5 {[%clk 0:03:22.7]} 19. Rg3 {[%clk 0:03:33.3]} 19...
Ne8 {[%clk 0:03:15.3]} 20. c4 {[%clk 0:03:25.3]} 20... Rd4 {[%clk 0:03:06.5]}
21. Qg5 {[%clk 0:03:20]} 21... f6 {[%clk 0:02:55.4]} 22. Qxc5 {[%clk 0:03:12.9]}
22... Rd2 {[%clk 0:02:39.1]} 23. Qf8# {[%clk 0:03:09.5]} 1-0